bitfinex-derivatives/quotes_ETHF0:USTF0_20250528
["timestamp","ask_amount","ask_price","bid_price","bid_amount"]
[1748475996562,3.2078,2672.5,2672.3,0.7482]
[1748475996758,4.2162,2672.4,2672.3,0.7482]
[1748475997365,4.2162,2672.4,2672.3,2.0478]
[1748475998669,4.96437,2672.4,2672.3,1.2996]
[1748475998876,6.29277,2672.4,2672.3,1.2996]
[1748475999570,0.74827,2672.1,2671.7,3.2078]
[1748475999769,4.104,2672.0,2671.9,2.02161]
[1748476000972,4.104,2672.3,2672.2,0.74822]
[1748476002465,0.1122,2672.4,2672.3,0.7482]
[1748476003161,0.1122,2672.4,2672.3,3.956]
[1748476003363,0.1122,2672.4,2672.3,8.956]
[1748476003567,0.00561304,2672.7,2672.6,0.74811]
[1748476003867,0.00561304,2672.7,2672.6,3.95591]
[1748476004067,0.00561304,2672.7,2672.6,8.95591]
[1748476005272,7.3118,2673.8,2672.6,8.2078]
[1748476005467,7.9287,2673.8,2673.7,0.7478]
[1748476006172,8.67648,2673.8,2673.7,0.7478]
[1748476006373,7.9287,2673.8,2673.7,0.7478]
[1748476006570,4.7209,2673.8,2673.7,0.7478]
[1748476006978,6.0536,2673.8,2673.7,0.7478]
[1748476007170,6.80138,2673.8,2673.7,0.7478]
[1748476007369,6.0536,2673.8,2673.5,0.00561304]
[1748476007572,6.80139,2673.8,2673.5,0.00561304]
[1748476007770,6.80139,2673.8,2673.7,0.7478]
[1748476008277,6.0536,2673.8,2673.7,0.7478]
[1748476008878,6.0536,2673.8,2673.6,0.74782]
[1748476009079,6.80139,2673.8,2673.7,0.7478]
[1748476009270,6.0536,2673.8,2673.7,0.7478]
[1748476013679,0.74783,2673.6,2673.5,0.00561304]
[1748476014385,0.74783,2673.6,2672.9,0.74803]
[1748476014386,6.86965,2673.6,2672.9,0.74803]
[1748476014688,0.748,2673.0,2672.9,0.74803]
[1748476014880,4.851,2673.0,2672.6,1.2868]
[1748476015085,1.3356,2672.9,2672.8,0.74806]
[1748476016092,4.103,2672.9,2672.8,1.34]
[1748476016392,4.103,2672.9,2672.8,2.08806]
[1748476018893,0.6309,2673.1,2673.0,0.748]
[1748476019486,0.6309,2673.1,2673.0,2.0351]
[1748476020285,2.0489,2673.4,2673.0,4.4949]
[1748476020286,1.301,2673.4,2673.0,4.4949]
[1748476020490,4.103,2673.4,2673.0,6.36487]
[1748476020691,4.103,2673.4,2673.3,0.74792]
[1748476020993,4.103,2673.4,2673.0,4.4949]
[1748476021199,0.74797,2673.1,2673.0,4.4949]
[1748476021500,0.74797,2673.1,2673.0,5.2429]
[1748476021997,1.37857,2673.2,2673.1,0.74797]
[1748476022197,0.74797,2673.1,2673.0,5.24288]
[1748476022996,1.37856,2673.2,2673.1,0.74797]
[1748476023385,0.6306,2673.2,2673.1,0.74797]
[1748476023798,4.1,2673.4,2673.1,0.74797]
[1748476023999,4.1,2673.4,2673.3,0.74792]
[1748476025299,4.1,2673.4,2673.3,3.95572]
[1748476026599,4.84789,2673.4,2673.3,3.2078]
[1748476026788,0.74803,2672.9,2672.8,3.2078]
[1748476027493,1.36703,2672.9,2672.8,3.2078]
[1748476027693,1.36703,2672.9,2672.8,3.95586]
[1748476027997,1.36703,2672.9,2672.8,3.2078]
[1748476028299,1.36703,2672.9,2672.8,3.95586]
[1748476030595,4.719,2672.9,2672.8,3.95586]
[1748476032301,5.46703,2672.9,2672.8,3.95586]
[1748476033694,4.719,2672.9,2672.8,3.95586]
[1748476036302,5.46702,2672.9,2672.8,3.95586]
[1748476036507,4.719,2672.9,2672.8,3.95586]
[1748476037000,4.84788,2673.5,2672.9,1.87006]
[1748476037207,6.0197,2673.5,2673.4,0.74788]
[1748476037804,4.7106,2673.5,2673.4,0.74788]
[1748476038907,5.45846,2673.5,2673.4,0.74788]
[1748476040305,4.7106,2673.5,2673.4,0.74788]
[1748476041007,5.45846,2673.5,2673.4,0.74788]
[1748476041308,0.74792,2673.4,2673.3,0.7479]
[1748476041502,0.74792,2673.4,2673.3,1.9926]
[1748476042401,6.011,2673.5,2673.4,0.74789]
[1748476042701,6.011,2673.5,2673.4,1.99259]
[1748476043698,6.75886,2673.5,2673.4,1.99259]
[1748476046015,6.75886,2673.5,2673.4,1.2447]
[1748476046310,6.75886,2673.5,2673.4,1.99259]
[1748476047712,4.1,2673.5,2673.4,1.99259]
[1748476048208,0.1122,2673.6,2673.4,1.99259]
[1748476048415,0.1122,2673.6,2673.5,0.74786]
[1748476048608,4.099,2673.7,2673.6,0.74783]
[1748476049109,4.099,2674.2,2673.9,0.74775]
[1748476049305,4.099,2674.2,2673.9,3.95555]
[1748476049706,4.84667,2674.2,2673.9,3.95555]
[1748476049906,4.099,2674.2,2673.9,5.21535]
[1748476050912,0.1121,2674.1,2673.9,5.21535]
[1748476052615,0.1121,2674.1,2673.9,10.21535]
[1748476052813,3.04e-06,2674.0,2673.9,10.21535]
[1748476053314,3.04e-06,2674.1,2674.0,0.74772]
[1748476053523,3.04e-06,2674.1,2674.0,2.01492]
[1748476053811,0.74769304,2674.1,2674.0,2.01492]
[1748476054012,3.04e-06,2674.1,2674.0,2.01492]
[1748476054919,0.74769304,2674.1,2674.0,1.2672]
[1748476055212,0.74772,2674.0,2673.9,3.2078]
[1748476055415,0.74775,2673.9,2673.8,0.00561304]
[1748476055617,2.01195,2673.9,2673.8,0.00561304]
[1748476057308,6.10395,2673.9,2673.8,0.00561304]
[1748476058313,0.6494,2674.0,2673.9,0.74775]
[1748476058820,4.7414,2674.0,2673.9,0.74775]
[1748476059819,5.48913,2674.0,2673.9,0.74775]
[1748476060224,4.7414,2674.0,2673.9,0.74775]
[1748476060516,3.04e-06,2674.1,2674.0,0.74772]
[1748476060913,3.04e-06,2674.1,2674.0,2.04282]
[1748476062321,3.04e-06,2674.1,2674.0,5.25062]
[1748476065826,3.04e-06,2674.1,2674.0,10.25062]
[1748476067422,3.04e-06,2674.1,2674.0,5.25062]
[1748476067622,3.04e-06,2674.1,2674.0,10.25062]
[1748476068023,0.00561304,2674.3,2674.2,0.74766]
[1748476076942,0.61511304,2674.3,2674.2,0.74766]
[1748476077328,0.00561304,2674.3,2674.2,0.74766]
[1748476080631,1.25071304,2674.3,2674.2,0.74766]
[1748476080834,0.00561304,2674.3,2674.2,0.74766]
[1748476081338,3.04e-06,2674.5,2674.4,0.74761]
[1748476081538,3.04e-06,2674.5,2674.4,3.95541]
[1748476081740,3.04e-06,2674.5,2674.4,8.95541]
[1748476082140,3.04e-06,2674.5,2674.4,3.95541]
[1748476082532,3.04e-06,2674.5,2674.4,0.74761]
[1748476082739,1.24510304,2674.5,2674.4,0.74761]
[1748476083132,1.99268304,2674.5,2674.4,0.74761]
[1748476083340,1.24510304,2674.5,2674.4,0.74761]
[1748476083635,3.04e-06,2674.5,2674.4,0.74761]
[1748476083837,1.26860304,2674.5,2674.4,0.74761]
[1748476085043,1.26860304,2674.5,2674.3,0.74761]
[1748476085245,2.01620304,2674.5,2674.4,0.74761]
[1748476086146,6.26860304,2674.5,2674.1,3.2078]
[1748476086438,0.74775,2673.9,2673.8,0.00561304]
[1748476086641,0.74789,2673.4,2673.3,0.7479]
[1748476087039,0.74789,2673.4,2673.2,3.2078]
[1748476087242,0.74789,2673.4,2673.3,0.74792]
[1748476087443,4.82986,2673.5,2673.4,0.74789]
[1748476087641,4.082,2673.5,2673.4,0.74789]
[1748476087840,0.6297,2673.8,2673.3,1.86979]
[1748476088036,0.6297,2673.8,2673.7,0.7478]
[1748476088447,4.7117,2673.8,2673.7,0.7478]
[1748476088745,5.45948,2673.8,2673.7,0.7478]
[1748476089242,5.45948,2673.8,2673.3,3.16369]
[1748476089243,9.7117,2673.8,2673.3,1.2939]
[1748476089446,0.7479,2673.4,2673.3,0.74791]
[1748476089643,4.8299,2673.4,2673.3,0.74791]
[1748476089948,4.082,2673.4,2673.3,0.74791]
[1748476090447,0.74792,2673.3,2673.2,3.96134304]
[1748476090643,0.74792,2673.3,2673.2,3.21341304]
[1748476091543,0.74792,2673.3,2673.2,0.00561304]
[1748476092444,1.86996,2673.1,2672.6,0.74809]
[1748476092650,0.74808,2672.7,2672.6,0.74809]
[1748476093447,0.74807,2672.8,2672.7,0.74808]
[1748476093649,4.83107,2672.8,2672.7,0.74808]
[1748476093948,4.083,2672.8,2672.7,0.74808]
[1748476094545,4.083,2672.8,2672.2,3.2078]
[1748476094749,0.74825,2672.1,2672.0,0.74827]
[1748476094951,4.083,2672.1,2672.0,0.74827]
[1748476095145,3.2078,2672.3,2672.2,0.74822]
[1748476095342,3.2078,2672.3,2672.0,0.74828]
[1748476095343,4.083,2672.1,2672.0,0.74828]
[1748476096345,4.7473,2672.1,2672.0,0.74828]
[1748476097847,4.083,2672.1,2672.0,0.74828]
[1748476098236,3.2078,2672.7,2672.1,1.87061]
[1748476098437,4.084,2672.4,2672.3,0.7482]
[1748476098649,4.084,2672.4,2672.3,1.9918]
[1748476099348,3.2078,2672.7,2672.6,0.74811]
[1748476099551,7.2918,2672.7,2672.6,0.74811]
[1748476101747,4.084,2672.7,2672.6,0.74811]
[1748476101945,4.084,2672.7,2672.3,1.2436]
[1748476102346,0.74811,2672.6,2672.5,0.74812]
[1748476102650,0.74813,2672.6,2672.5,0.74813]
[1748476102953,4.084,2672.7,2672.3,1.2436]
[1748476103249,4.084,2672.7,2672.2,0.6178]
[1748476103250,0.7482,2672.3,2672.2,0.74821]
[1748476103448,4.8322,2672.3,2672.2,0.74821]
[1748476103858,4.084,2672.3,2672.2,0.74821]
[1748476105053,0.74825,2672.2,2672.1,0.74824]
[1748476105352,1.95895,2672.2,2672.1,0.74824]
[1748476105553,3.2078,2672.3,2672.2,0.74822]
[1748476105751,4.084,2672.3,2672.2,0.74822]
[1748476107253,0.74825,2672.2,2672.1,0.74823]
[1748476107451,2.70125,2672.2,2672.1,0.74823]
[1748476109055,1.953,2672.2,2672.1,0.74823]
[1748476109955,3.2078,2672.4,2672.3,0.7482]
[1748476110158,4.085,2672.2,2671.9,1.87071]
[1748476110458,4.085,2672.2,2672.1,0.74825]
[1748476111358,4.83326,2672.2,2671.8,3.8238]
[1748476111559,4.085,2672.2,2672.1,0.74825]
[1748476111756,4.085,2672.2,2671.8,0.616]
[1748476112052,1.87064,2672.1,2671.5,3.2078]
[1748476112251,3.2078,2671.9,2671.8,0.74834]
[1748476112652,4.5512,2671.9,2671.8,0.74834]
[1748476112857,5.29951,2671.9,2671.8,0.74834]
[1748476113060,4.5512,2671.9,2671.2,5.07906]
[1748476113354,0.74835,2671.8,2671.7,0.74834]
[1748476113556,7.2928,2671.9,2671.8,0.74834]
[1748476113956,7.2928,2671.9,2671.6,0.74838]
[1748476114159,7.2928,2671.9,2671.2,3.2078]
[1748476114160,7.2928,2671.9,2671.8,0.74834]
[1748476114548,4.085,2671.9,2671.8,0.74834]
[1748476114750,1.90711304,2672.1,2672.0,0.74828]
[1748476114954,4.08161304,2672.1,2672.0,0.74828]
[1748476115554,0.00561304,2672.1,2672.0,0.74828]
[1748476115752,4.08161304,2672.1,2672.0,0.74828]
[1748476116661,0.00561304,2672.1,2672.0,0.74828]
[1748476116961,4.08261304,2672.1,2672.0,0.74828]
[1748476118557,0.00561304,2672.1,2672.0,0.74828]
[1748476121862,0.74831,2672.0,2671.9,0.74829]
[1748476122060,2.01338,2672.0,2671.9,0.74829]
[1748476122358,1.2651,2672.0,2671.9,0.74829]
[1748476122752,4.077,2672.0,2671.9,0.74829]
[1748476123151,4.077,2672.0,2671.6,2.49334]
[1748476123152,0.00561304,2672.1,2672.0,0.74828]
[1748476123357,4.08261304,2672.1,2672.0,0.74828]
[1748476124263,0.00561304,2672.1,2672.0,0.74828]
[1748476124464,4.08261304,2672.1,2672.0,0.74828]
[1748476125466,7.29041304,2672.1,2672.0,0.74828]
[1748476125661,8.52761304,2672.1,2672.0,0.74828]
[1748476126563,5.31981304,2672.1,2672.0,0.74828]
[1748476128265,0.00561304,2672.1,2672.0,0.74828]
[1748476128967,0.00561304,2672.1,2672.0,1.97118]
[1748476129268,0.00561304,2672.1,2672.0,0.74828]
[1748476131561,3.04e-06,2672.1,2672.0,0.74828]
[1748476131956,3.2078,2673.6,2673.5,0.74785]
[1748476132265,8.38343013,2673.6,2673.5,0.74785]
[1748476132468,7.2848,2673.6,2673.5,0.74785]
[1748476132761,9.1409,2673.6,2673.5,0.74785]
[1748476133465,5.9331,2673.6,2673.5,0.74785]
[1748476133767,4.71,2673.6,2673.5,0.74785]
[1748476134266,4.71,2673.6,2673.5,2.06065]
[1748476134767,0.00561304,2673.8,2673.7,0.7478]
[1748476134969,4.08161304,2673.8,2673.7,0.7478]
[1748476136269,4.08161304,2673.8,2673.5,1.3128]
[1748476136473,0.74789,2673.4,2673.3,0.00561304]
[1748476136663,4.076,2673.4,2673.3,0.75350304]
[1748476137068,4.076,2673.4,2673.3,2.07360304]
[1748476137971,6.15539,2673.4,2673.3,1.32571304]
[1748476138170,6.15539,2673.4,2673.3,0.00561304]
[1748476138977,6.15539,2673.4,2673.3,0.75353304]
[1748476139468,4.076,2673.4,2673.3,0.75353304]
[1748476140066,5.4075,2673.4,2673.3,2.02253304]
[1748476140263,4.076,2673.4,2673.3,2.02253304]
[1748476140470,0.6343,2673.5,2673.4,0.74789]
[1748476140669,5.4075,2673.7,2673.6,0.74783]
[1748476142581,4.076,2673.7,2673.6,0.74783]
[1748476142878,0.00561304,2673.8,2673.7,0.7478]
[1748476143470,0.00561304,2673.8,2673.6,0.74781]
[1748476143666,1.25881304,2673.8,2673.7,2.0704]
[1748476144181,1.25881304,2673.8,2673.4,3.2078]
[1748476144478,0.74786,2673.5,2673.4,3.95566]
[1748476144673,4.067,2673.5,2673.4,3.95566]
[1748476144878,4.81486,2673.5,2673.4,3.95566]
[1748476145078,0.74789,2673.4,2673.3,0.00561304]
[1748476145273,2.64499,2673.4,2673.3,0.00561304]
[1748476147178,2.64499,2673.4,2673.3,0.75353304]
[1748476147179,1.8971,2673.4,2673.3,0.75353304]
[1748476147383,5.9641,2673.4,2673.3,0.75353304]
[1748476147573,4.7109,2673.4,2673.3,0.75353304]
[1748476148169,0.00561304,2673.8,2673.4,1.86973]
[1748476148476,0.00561304,2673.8,2673.7,0.7478]
[1748476148477,4.07261304,2673.8,2673.7,0.7478]
[1748476149378,0.00561304,2673.8,2673.7,0.7478]
[1748476160979,0.00561304,2673.8,2673.7,18.5518]
[1748476161978,0.00561304,2673.8,2673.5,4.4895]
[1748476162177,0.74783,2673.6,2673.5,4.4895]
[1748476162382,4.81383,2673.6,2673.5,1.2817]
[1748476162986,5.3026,2673.6,2673.3,0.64131304]
[1748476163183,4.066,2673.6,2673.5,0.74786]
[1748476163883,0.6557,2673.7,2673.6,0.74783]
[1748476164181,5.4695,2673.7,2673.6,0.74783]
[1748476164378,4.7217,2673.7,2673.3,1.88751304]
[1748476164583,0.74789,2673.4,2673.3,1.25181304]
[1748476164786,0.74789,2673.4,2673.3,1.99972304]
[1748476165094,0.74788,2673.5,2673.4,0.74789]
[1748476165683,1.2366,2673.6,2673.3,1.25181304]
[1748476166089,0.74786,2673.5,2673.4,0.74788]
[1748476166286,0.74789,2673.4,2673.3,1.99971304]
[1748476166486,0.74789,2673.4,2673.3,1.25181304]
[1748476166788,0.74789,2673.4,2673.3,0.00561304]
[1748476167487,0.748,2673.0,2672.9,3.2078]
[1748476167693,4.815,2673.0,2672.9,3.2078]
[1748476167990,5.93707,2673.0,2672.4,0.74817]
[1748476168183,0.74814,2672.5,2672.4,0.74817]
[1748476168387,0.74817,2672.4,2672.3,3.8444]
[1748476168592,2.05327,2672.4,2672.3,3.8444]
[1748476170094,2.05327,2672.4,2672.3,3.2078]
[1748476170587,0.74823,2672.2,2671.8,0.6557]
[1748476170791,0.74826,2672.1,2672.0,0.74826]
[1748476171091,4.067,2672.2,2672.1,0.74825]
[1748476171697,0.00561304,2672.3,2672.2,0.74822]
[1748476171996,4.07261304,2672.3,2672.2,0.74822]
[1748476172183,4.82081304,2672.3,2672.2,0.74822]
[1748476172384,4.07261304,2672.3,2672.2,0.74822]
[1748476174093,4.07361304,2672.3,2672.2,0.74822]
[1748476174502,4.82181304,2672.3,2672.2,0.74822]
[1748476174690,4.07361304,2672.3,2672.2,0.74822]
[1748476175392,4.82181304,2672.3,2672.2,0.74822]
[1748476175590,4.82181304,2672.3,2672.1,1.2614]
[1748476175591,0.74822,2672.2,2672.1,2.00963]
[1748476175791,4.82182304,2672.3,2672.2,0.74822]
[1748476175992,4.07361304,2672.3,2672.2,0.74822]
[1748476177093,5.41571304,2672.3,2672.2,0.74822]
[1748476177895,6.16391304,2672.3,2672.2,0.74822]
[1748476178099,5.41571304,2672.3,2672.2,0.74822]
[1748476178291,0.00561304,2672.3,2672.2,0.74822]
[1748476178689,0.00561304,2672.3,2672.2,1.35392]
[1748476178892,0.00561304,2672.3,2672.2,19.15492]
[1748476180495,4.7085,2673.0,2672.9,0.74803]
[1748476181793,0.74805,2672.9,2672.8,0.74804]
[1748476182001,0.74805,2672.9,2672.7,0.00561304]
[1748476182002,0.74806,2672.8,2672.7,0.75368304]
[1748476182501,1.37736,2672.8,2672.7,0.00561304]
[1748476183400,0.6293,2672.8,2672.7,0.75369304]
[1748476183595,1.2999,2672.9,2672.8,0.74806]
[1748476183899,5.3589,2672.9,2672.8,0.74806]
[1748476184096,5.3589,2672.9,2672.8,2.00166]
[1748476185200,0.74806,2672.8,2672.7,0.00561304]
[1748476185396,0.6495,2673.0,2672.7,0.00561304]
[1748476185602,5.45652,2673.0,2672.9,0.74803]
[1748476185803,6.79742,2673.0,2672.9,0.74803]
[1748476186400,0.74804,2672.9,2672.8,0.74804]
[1748476186598,6.0494,2673.0,2672.8,1.3194]
[1748476186796,6.79742,2673.0,2672.9,0.74803]
[1748476188497,6.0494,2673.0,2672.9,0.74803]
[1748476188892,6.7974,2673.0,2672.9,0.74803]
[1748476189510,6.0494,2673.0,2672.9,0.74803]
[1748476191207,6.7974,2673.0,2672.9,0.74803]
[1748476191403,6.0494,2673.0,2672.9,0.74803]
[1748476191602,6.7974,2673.0,2672.9,0.74803]
[1748476192808,6.0494,2673.0,2672.9,0.74803]
[1748476193008,6.7974,2673.0,2672.9,0.74803]
[1748476194406,4.7085,2673.0,2672.9,0.74803]
[1748476195309,5.4565,2673.0,2672.9,0.74803]
[1748476195511,0.74805,2672.9,2672.8,0.74804]
[1748476195707,1.98955,2672.9,2672.8,0.74804]
[1748476196413,0.74806,2672.8,2672.7,0.00561304]
[1748476196605,0.1122,2673.0,2672.9,0.74803]
[1748476196906,4.1712,2673.0,2672.8,1.2812]
[1748476197108,0.74806,2672.8,2672.7,0.75367304]
[1748476197815,1.98956,2672.8,2672.7,0.75367304]
[1748476198208,1.98956,2672.8,2672.7,0.00561304]
[1748476198506,1.98956,2672.8,2672.7,0.75369304]
[1748476199416,10.19736,2672.8,2672.7,0.00561304]
[1748476199916,50.99736,2672.8,2672.7,0.00561304]
[1748476200509,45.99736,2672.8,2672.7,0.00561304]
[1748476203518,5.3005,2672.8,2672.7,0.75369304]
[1748476203818,4.059,2672.8,2672.7,0.75369304]
[1748476204818,4.059,2672.8,2672.7,2.05179304]
[1748476206321,0.6698,2672.9,2672.8,0.74805]
[1748476206520,0.1122,2673.0,2672.9,0.74803]
[1748476206726,0.1122,2673.0,2672.9,7.04613]
[1748476208219,0.00561304,2673.2,2673.1,0.74797]
[1748476208420,0.00561304,2673.2,2673.1,3.95577]
[1748476210221,0.74771,2674.1,2674.0,0.74771]
[1748476210424,4.79571,2674.1,2674.0,0.74771]
[1748476210720,4.048,2674.1,2674.0,0.74771]
[1748476213828,4.59988,2674.2,2673.9,1.319]
[1748476213829,3.8522,2674.2,2674.1,0.74769]
[1748476214123,0.00561304,2674.3,2674.2,0.74766]
[1748476214326,3.04e-06,2674.3,2674.2,2.64326]
[1748476214527,3.04e-06,2674.3,2674.2,25.41926]
[1748476216626,4.047,2675.3,2675.2,0.74738]
[1748476216824,0.6178,2675.6,2675.1,3.2078]
[1748476217131,0.74738,2675.2,2675.1,3.2078]
[1748476217532,0.74737,2675.3,2675.2,0.74738]
[1748476218025,4.79435,2675.4,2675.2,0.74738]
[1748476218234,4.79435,2675.4,2675.3,0.74736]
[1748476218425,0.75293304,2675.5,2675.1,3.2078]
[1748476218625,4.05161304,2675.5,2675.4,0.74732]
[1748476219233,4.79891304,2675.5,2675.4,0.74732]
[1748476219733,0.00561304,2675.5,2675.1,3.2078]
[1748476219929,0.74734,2675.4,2675.1,3.2078]
[1748476220127,0.74736,2675.3,2675.2,0.74737]
[1748476220429,0.74738,2675.2,2675.1,3.2078]
[1748476220633,6.63718,2675.2,2675.1,3.2078]
[1748476221330,0.74741,2675.1,2675.0,0.00561304]
[1748476221533,1.97331,2675.1,2675.0,0.00561304]
[1748476222532,1.2259,2675.1,2675.0,0.75305304]
[1748476222724,1.97331,2675.1,2675.0,0.00561304]
[1748476223123,1.97331,2675.1,2675.0,0.75305304]
[1748476223431,1.97331,2675.1,2675.0,0.00561304]
[1748476223730,1.97331,2675.1,2675.0,0.75305304]
[1748476224431,1.97331,2675.1,2675.0,0.00561304]
[1748476225333,1.97331,2675.1,2675.0,0.75305304]
[1748476225533,6.01831,2675.1,2675.0,0.75305304]
[1748476226531,6.01831,2675.1,2675.0,0.00561304]
[1748476229339,6.01831,2675.1,2675.0,0.75305304]
[1748476229635,6.01831,2675.1,2675.0,0.00561304]
[1748476231435,9.22611,2675.1,2675.0,0.00561304]
[1748476231743,0.74766,2674.2,2674.1,3.2078]
[1748476231931,0.74775,2673.9,2673.8,3.95556]
[1748476232132,0.74775,2673.9,2673.8,3.2078]
[1748476232837,0.74775,2674.0,2673.8,3.2078]
[1748476233136,0.74775,2674.0,2673.7,0.6229]
[1748476233137,1.99225,2674.0,2673.9,0.74773]
[1748476233341,0.74776,2673.9,2673.8,0.74776]
[1748476233538,1.99224,2674.0,2673.7,0.6229]
[1748476233733,1.99224,2674.0,2673.9,0.74775]
[1748476235644,1.99222,2674.0,2673.9,0.74775]
[1748476237146,1.2445,2674.0,2673.9,0.74775]
[1748476238446,0.74775,2673.9,2673.8,2.01516]
[1748476238646,1.99224,2674.0,2673.9,0.74775]
[1748476239348,0.7478,2673.7,2673.6,0.00561304]
[1748476239548,7.9886,2673.7,2673.6,0.00561304]
[1748476239948,7.9886,2673.7,2673.6,0.75344304]
[1748476240143,7.9886,2673.7,2673.6,0.00561304]
[1748476240448,7.9886,2673.7,2673.6,0.75344304]
[1748476240744,3.9556,2673.7,2673.6,0.75344304]
[1748476240945,3.9556,2673.7,2673.6,3.96124304]
[1748476240946,4.033,2673.7,2673.6,3.96124304]
[1748476241448,4.033,2673.7,2673.6,5.24574304]
[1748476241644,0.74775,2673.9,2673.8,0.74776]
[1748476241948,4.78075,2673.9,2673.8,0.74776]
[1748476242852,0.74778,2673.8,2673.7,2.03228]
[1748476243052,1.97818,2673.8,2673.7,2.03228]
[1748476243946,1.2304,2673.8,2673.7,2.03228]
[1748476244349,4.033,2673.8,2673.7,2.0323]
[1748476244543,4.033,2673.8,2673.7,2.6636]
[1748476248650,0.1121,2673.9,2673.8,0.74778]
[1748476248854,4.1451,2673.9,2673.8,2.01288]
[1748476252256,4.1451,2673.9,2673.8,5.22068]
[1748476258966,1e-05,2674.1,2674.0,0.74772]
[1748476259161,1e-05,2674.1,2674.0,23.48772]
[1748476259659,1e-05,2674.1,2674.0,24.73542]
[1748476260365,4.6755,2675.2,2675.1,0.74741]
[1748476260955,4.6755,2675.2,2674.6,2.4633]
[1748476260956,9.6755,2675.2,2674.6,0.611]
[1748476261265,2.0683,2675.1,2675.0,0.74744]
[1748476261461,0.112,2675.1,2675.0,0.74744]
[1748476261658,0.112,2675.1,2675.0,3.95524]
[1748476262067,0.112,2675.1,2675.0,5.23214]
[1748476263162,1e-05,2675.1,2675.0,5.23214]
[1748476263470,1e-05,2675.1,2675.0,10.23214]
[1748476264067,3.04e-06,2675.3,2675.2,0.74739]
[1748476264471,3.04e-06,2675.3,2675.2,5.74739]
[1748476267577,3.04e-06,2675.3,2675.2,0.74739]
[1748476270883,0.63420304,2675.3,2675.2,2.02749]
[1748476271979,0.63420304,2675.3,2675.2,0.74739]
[1748476272182,1.90570304,2675.3,2675.2,0.74739]
[1748476272377,3.31716304,2675.3,2675.2,0.74739]
[1748476272581,2.56980304,2675.3,2675.2,0.74739]
[1748476276379,1.90570304,2675.3,2675.2,0.74739]
[1748476276984,3.04e-06,2675.3,2675.2,0.74739]
[1748476277180,3.04e-06,2675.3,2675.2,1.39529]
[1748476283380,3.04e-06,2675.3,2675.2,18.46139]
[1748476283892,2.04866304,2675.3,2675.2,0.74739]
[1748476284093,1.30130304,2675.3,2675.2,0.74739]
[1748476286592,3.04e-06,2675.3,2675.2,0.74739]
[1748476289994,3.04e-06,2675.3,2675.2,1.35159]
[1748476291592,3.04e-06,2675.5,2675.4,0.74733]
[1748476291798,3.04e-06,2675.5,2675.4,3.95513]
[1748476292297,3.04e-06,2675.5,2675.4,13.58173]
[1748476293297,6.08e-06,2675.7,2675.6,0.74727]
[1748476293693,6.08e-06,2675.7,2675.6,5.74727]
[1748476294398,6.08e-06,2675.7,2675.6,27.47027]
[1748476294900,6.08e-06,2675.7,2675.6,18.45127]
[1748476295093,6.08e-06,2675.7,2675.6,0.74727]
[1748476297698,6.08e-06,2675.7,2675.6,0.74207808]
[1748476298194,6.08e-06,2675.7,2675.6,18.44407808]
[1748476298401,6.08e-06,2675.7,2675.6,0.74207808]
[1748476298703,0.65010608,2675.7,2675.6,0.74207808]
[1748476298902,2.68145608,2675.7,2675.6,0.74207808]
[1748476299099,1.93420608,2675.7,2675.6,0.74207808]
[1748476299700,2.68145608,2675.7,2675.6,0.74207808]
[1748476299898,1.93420608,2675.7,2675.6,0.74207808]
[1748476305309,1.28410608,2675.7,2675.6,0.74207808]
[1748476307011,3.15224608,2675.7,2675.4,3.2078]
[1748476307311,0.74734,2675.4,2675.1,3.8786]
[1748476307511,2.507,2675.3,2675.2,0.74739]
[1748476307712,2.507,2675.3,2675.2,2.04509]
[1748476309309,6.08e-06,2675.7,2675.6,0.74727]
[1748476309514,6.08e-06,2675.7,2675.6,3.95507]
[1748476310610,1.30240608,2675.7,2675.6,3.95507]
[1748476313920,6.08e-06,2675.7,2675.6,3.95507]
[1748476318826,1.21830608,2675.7,2675.6,3.95507]
[1748476319023,6.21830608,2675.7,2675.6,3.2078]
[1748476319324,6.21830608,2675.7,2675.2,1.86846]
[1748476319523,1.21830608,2675.7,2675.4,0.74732]
[1748476319723,1.21830608,2675.7,2675.0,6.32642304]
[1748476319919,1.21830608,2675.7,2675.1,1.86854]
[1748476320126,0.74731,2675.5,2675.1,1.86854]
[1748476320427,1.3259,2675.4,2675.3,0.74736]
[1748476325534,6.08e-06,2675.7,2675.3,0.74736]
[1748476325837,6.08e-06,2675.7,2675.6,3.95507]
[1748476326642,6.08e-06,2675.7,2675.6,5.84537]
[1748476327535,6.08e-06,2675.7,2675.6,2.63757]
[1748476327933,0.7473,2675.6,2675.5,0.7473]
[1748476328133,3.993,2675.6,2675.5,0.7473]
[1748476328348,3.993,2675.6,2675.3,3.2078]
[1748476328349,1.94370608,2675.7,2675.6,0.74727]
[1748476328538,3.99300608,2675.7,2675.6,0.74727]
[1748476328747,3.99300608,2675.7,2675.6,3.95507]
[1748476330146,6.08e-06,2675.7,2675.6,3.95507]
[1748476331041,6.08e-06,2675.7,2675.6,5.78417]
[1748476334544,6.08e-06,2675.7,2675.6,5.16357]
[1748476334743,6.08e-06,2675.7,2675.6,3.95507]
[1748476335144,1.21880608,2675.7,2675.6,3.95507]
[1748476335541,5.21180608,2675.7,2675.6,3.95507]
[1748476335948,6.08e-06,2675.7,2675.6,3.95507]
[1748476336249,3.99300608,2675.7,2675.6,3.95507]
[1748476338754,1.29800608,2675.7,2675.6,3.95507]
[1748476339742,1.29800608,2675.7,2675.6,0.74727]
[1748476341443,1.29800608,2675.7,2675.6,3.95507]
[1748476343550,7.04525608,2675.7,2675.6,0.74727]
[1748476344247,0.74729,2675.6,2675.5,0.74728]
[1748476344451,2.67249,2675.6,2675.5,0.7473]
[1748476344644,1.9252,2675.6,2675.5,0.7473]